[Event "13th Dolomiti-Forni di Sopra-A 2022"]
[Site "Forni di Sopra"]
[Date "2022.06.18"]
[Round "8.1"]
[White "Bernadskiy, Vitaliy"]
[Black "Korneev, Oleg"]
[Result "1-0"]
[ECO "B23"]
[WhiteElo "2636"]
[BlackElo "2521"]
[Annotator "TA"]
[PlyCount "63"]
[EventDate "2022.06.13"]
[EventType "swiss"]
[EventCountry "ITA"]
[SourceTitle "playchess.com"]
[Source "ChessBase"]
[SourceQuality "1"]
[TimeControl "40/5400+30:1800+30"]

{[%evp 9,63,0,0,0,6,-6,2,-7,-7,-12,-9,-6,0,-18,-15,-44,0,-43,9,0,8,0,36,14,56,37,109,94,149,25,235,202,151,159,240,212,417,422,419,407,418,393,460,302,379,272,495,487,713,742,1400,1475,1246,748,29992,29993]} 1. e4 {[%emt 0:13:55]} c5 {[%emt 0:00:04]} 2. Nc3 {[%emt 0:00:27]} e6 {[%emt 0:00:03]} 3. d4 {[%emt 0:01:06]} cxd4 {[%emt 0:03:04]} 4. Qxd4 {[%emt 0:00:04]} Nc6 {[%emt 0:00:15]} 5. Qe3 {[%emt 0:00:05]} Nf6 {[%emt 0:02:08]} 6. Nf3 {[%emt 0:00:17] B23: Closed Sicilian: Lines without g3.} d6 {[%emt 0:01:11]} 7. b3 $5 {[%emt 0:01:57][%mdl 4] is currently scoring better than 7.Bd3. Exploring less charted territory.} a6 {[%emt 0:06:26]} 8. Bb2 {[%emt 0:02:39] The position is equal.} Be7 {[%emt 0:00:39]} 9. O-O-O {[%emt 0:00:10]} O-O {[%emt 0:00:59]} 10. h3 {[%emt 0:04:06][%cal Bh2h3,Bh3h4,Bh4h5][%mdl 32] [#]} Nd7 $146 {[%emt 0:12:13] Prevents e5.} ({Predecessor:} 10... Qc7 11. g4 b5 12. g5 Nd7 13. Kb1 Bb7 14. h4 Rac8 15. Bd3 Nc5 16. h5 Ne5 {1-0 (30) Titichoca Daza,D (2250)-Wu,C (2347) Chess.com INT 2022}) 11. h4 {[%emt 0:02:29]} b5 {[%emt 0:02:10]} 12. Ng5 {[%emt 0:00:07]} Nc5 {[%emt 0:09:21]} 13. Kb1 {[%emt 0:05:24]} f6 {[%emt 0:12:33]} (13... b4 $15 14. Ne2 Qc7) 14. Nf3 {[%emt 0:00:58]} Qc7 {[%emt 0:06:26]} (14... b4 $5 {[%cal Rb4c3]} 15. Ne2 a5 $11) 15. h5 {[%emt 0:05:35]} Bd7 {[%emt 0:02:42]} (15... b4 $5 {[%cal Rb4c3]} 16. Ne2 a5 $11) 16. Nh4 {[%emt 0:00:05][%cal Oh4g6]} Be8 {[%emt 0:01:22] Against Ng6} (16... b4 $5 {[%cal Rb4c3]} 17. Ne2 Rfc8 $11) 17. g4 {[%emt 0:00:58]} Ne5 {[%emt 0:06:05]} (17... b4 $14 18. Ne2 a5) 18. f4 $1 $16 {[%emt 0:03:35][%cal Bf2f4,Bf4f5][%mdl 32]} Nxg4 {[%emt 0:02:00]} ({Better is} 18... b4 19. fxe5 bxc3 20. Qxc3 (20. exd6 Bxd6 21. Qxc3 Be5 $11) 20... Bc6) 19. Qf3 {[%emt 0:03:15]} ({White must play} 19. Qg3 $1 $16 {[%cal Rg3g4]} Bxh5 20. Nf5) 19... Bxh5 {[%emt 0:09:53] A mistake that costs the game.} (19... Nh6 $1 $11 {and Black is okay.}) 20. f5 {[%emt 0:01:16] Black must now prevent fxe6.} b4 {[%emt 0:01:02] [#]} 21. Ne2 {[%emt 0:00:33][%cal Bc3e2,Be2f4,Bf4h5,Bh5g7,Bg7f5,Bf5h6][%mdl 32]} Nxe4 {[%emt 0:01:01] [#]} (21... d5 $16 {might work better.}) 22. Nf4 $1 $18 {[%emt 0:04:51]} ({Worse is} 22. Qxe4 Nf2 23. Qg2 (23. Qxe6+ $2 Bf7 $19) 23... Nxd1 $11) 22... Ng5 $2 {[%emt 0:01:08]} (22... Ne5 23. Qxe4 (23. Qxh5 Ng3 $11) 23... Bxd1) 23. Qe2 {[%emt 0:01:49]} Nf2 {[%emt 0:06:03] [#]} 24. Nxh5 {[%emt 0:00:05] The board is on fire.} Nxh1 {[%emt 0:00:49]} 25. Bg2 {[%emt 0:00:44]} Rad8 {[%emt 0:04:12]} 26. Bxh1 {[%emt 0:00:57]} d5 {[%emt 0:00:25]} 27. Nf3 {[%emt 0:00:03]} Ne4 {[%emt 0:01:41]} (27... Nxf3 {is a better defense.} 28. Qxe6+ (28. Bxf3 Kh8 $18) 28... Kh8) 28. Nd4 {[%emt 0:01:46]} exf5 {[%emt 0:00:24] [#]} (28... Ng5 $142 29. Nxe6 (29. fxe6 g6 $16) 29... Nxe6) 29. Nxg7 $1 {[%emt 0:00:50][%mdl 512] Pair of Knights!} Nc3+ {[%emt 0:02:28]} (29... Qe5 30. Qg2) 30. Bxc3 {[%emt 0:00:07]} bxc3 {[%emt 0:00:02]} 31. Ngxf5 {[%emt 0:00:50] White wants to mate with Qg4+.} Rf7 {[%emt 0:02:03]} 32. Nh6+ {[%emt 0:00:09][%mdl 64] Deflection, Double Attack.  Weighted Error Value: White=0.25 (precise) /Black=0.73} 1-0

[Event "13th Dolomiti-Forni di Sopra-A 2022"]
[Site "Forni di Sopra"]
[Date "2022.06.18"]
[Round "8.2"]
[White "Prraneeth Vuppala"]
[Black "Basso, Pier Luigi"]
[Result "1/2-1/2"]
[ECO "C65"]
[WhiteElo "2447"]
[BlackElo "2570"]
[Annotator "TA"]
[PlyCount "158"]
[EventDate "2022.06.13"]
[EventType "swiss"]
[EventCountry "ITA"]
[SourceTitle "playchess.com"]
[Source "ChessBase"]
[SourceQuality "1"]
[TimeControl "40/5400+30:1800+30"]

{[%evp 9,158,11,19,6,18,16,33,24,21,18,25,16,41,38,66,70,108,108,116,122,122,85,92,93,82,73,79,62,80,80,87,80,82,83,82,82,82,82,79,82,82,85,117,117,147,90,90,70,68,31,27,17,68,36,67,60,57,54,54,47,47,45,47,0,47,0,47,47,47,43,29,0,45,31,33,18,47,14,19,9,37,30,37,30,27,25,64,25,584,584,576,414,483,296,11007,10274,6192,6762,3152,1743,29961,29959,29961,29962,29963,29964,29963,29965,29962,29961,29961,0,29963,29964,29963,29958,29959,0,12844,0,0,0,0,0,0,0,0,0,0,0,0,0,0,0,0,0,0,0,0,0,0,0,0,0,0,0,0,0,0,0,0]} 1. e4 {[%emt 0:00:03]} e5 {[%emt 0:14:26]} 2. Nf3 {[%emt 0:00:12]} Nc6 {[%emt 0:00:06]} 3. Bb5 {[%emt 0:00:12]} Nf6 {[%emt 0:00:06]} 4. d3 {[%emt 0:00:46]} Bc5 {[%emt 0:00:13]} 5. c3 {[%emt 0:00:55]} d5 {[%emt 0:00:49]} 6. exd5 {[%emt 0:00:45] C65: Ruy Lopez: Berlin Defence (3...Nf6), unusual lines and 4 0-0 Bc5.} Qxd5 {[%emt 0:02:44][%cal Oc5f2]} 7. Bc4 {[%emt 0:00:15]} Qd8 {[%emt 0:00:05]} 8. O-O {[%emt 0:07:56] White is slightly better.} O-O {[%emt 0:00:08]} 9. Nbd2 {[%emt 0:01:39]} Bf5 {[%emt 0:12:11]} 10. Qe2 {[%emt 0:04:06] [#]} Re8 $146 {[%emt 0:03:39]} ({Predecessor:} 10... Bd6 11. Ne4 Nxe4 12. dxe4 Bg4 13. h3 Bh5 14. Bg5 Bxf3 15. Qe3 Bc5 16. Bxd8 Bxe3 17. gxf3 Bxf2+ 18. Kxf2 Raxd8 {½-½ (81) Pichot,A (2600)-Martirosyan,H (2656) Riga 2021}) 11. Ne4 {[%emt 0:11:10]} Nxe4 {[%emt 0:02:17]} 12. dxe4 {[%emt 0:00:12]} Be6 {[%emt 0:00:32] [#]} 13. Ng5 $1 {[%emt 0:06:12]} Qf6 {[%emt 0:03:23]} 14. Nxe6 {[%emt 0:06:41]} fxe6 {[%emt 0:00:02]} 15. Bb5 {[%emt 0:12:51]} Red8 {[%emt 0:02:22]} 16. Bxc6 {[%emt 0:13:34]} bxc6 {[%emt 0:02:18]} 17. b4 {[%emt 0:01:27]} Bb6 {[%emt 0:00:36]} 18. Be3 {[%emt 0:07:06]} Bxe3 {[%emt 0:00:24]} 19. Qxe3 {[%emt 0:02:14]} ({Of course not} 19. fxe3 Qg6 $11) 19... Qf4 {[%emt 0:02:54]} 20. Qc5 {[%emt 0:02:25]} Qxe4 {[%emt 0:03:30]} 21. Rae1 {[%emt 0:20:19]} Qd5 {[%emt 0:00:13]} 22. Rxe5 {[%emt 0:00:00]} Qxc5 {[%emt 0:01:56]} 23. Rxc5 $16 {[%emt 0:00:00][%mdl 4096] Endgame KRR-KRR} a5 {[%emt 0:01:32]} 24. bxa5 {[%emt 0:00:00]} Ra6 {[%emt 0:00:04]} 25. Re5 {[%emt 0:00:00]} Rd5 {[%emt 0:03:59]} 26. Rxe6 {[%emt 0:00:00]} Rdxa5 {[%emt 0:00:08]} 27. Re7 {[%emt 0:00:00]} ({White should try} 27. Re8+ Kf7 28. Rfe1) 27... Ra7 {[%emt 0:06:59]} 28. h3 {[%emt 0:00:00] White is more active.} Rxa2 {[%emt 0:01:28]} 29. Kh2 {[%emt 0:00:00] Black must now prevent Rd1.} Rd2 {[%emt 0:00:24] Inhibits Rd1.} 30. Rfe1 {[%emt 0:00:37]} h6 {[%emt 0:06:30]} (30... Rxf2 $11 31. Rd7 Ra5) 31. R1e6 {[%emt 0:01:29]} Kf8 {[%emt 0:00:19]} 32. Re8+ {[%emt 0:02:03]} Kf7 {[%emt 0:00:01]} 33. R6e7+ {[%emt 0:00:01]} Kf6 {[%emt 0:00:19]} 34. Re3 {[%emt 0:00:49] [#] aiming for Rf8+.} Kf7 {[%emt 0:00:41] Against Rf8+} 35. R8e7+ {[%emt 0:00:43]} Kf8 {[%emt 0:00:08]} 36. Re8+ {[%emt 0:00:41]} (36. Kg3 $5 {[%cal Re7e6]}) 36... Kf7 {[%emt 0:00:02]} 37. R8e7+ {[%emt 0:00:42]} Kf8 {[%emt 0:00:48]} 38. Kg3 {[%emt 0:00:29]} Rd3 {[%emt 0:01:28][%cal Od3c3]} 39. Re8+ {[%emt 0:00:16]} Kf7 {[%emt 0:00:01]} 40. R8e7+ {[%emt 0:00:15]} Kf8 $1 {[%emt 0:00:23][%cal Od3c3]} 41. R7e5 {[%emt 0:09:42]} Rxe3+ {[%emt 0:01:15]} 42. fxe3 $14 {[%emt 0:00:10] KR-KR} Kf7 {[%emt 0:00:13]} 43. e4 {[%emt 0:01:45]} Ra4 {[%emt 0:00:29]} 44. Rc5 {[%emt 0:00:35]} Rxe4 {[%emt 0:00:06]} 45. Rxc6 {[%emt 0:00:05]} Re7 {[%emt 0:00:03]} 46. Kf4 {[%emt 0:00:24]} g6 {[%emt 0:00:57]} 47. g4 {[%emt 0:01:49][%cal Bg2g4,Bg4h5][%mdl 32]} Kg7 {[%emt 0:00:47]} 48. h4 {[%emt 0:01:23]} Kf7 $2 {[%emt 0:01:46][%mdl 8192]} (48... g5+ $1 $11 49. hxg5 Rf7+ 50. Ke4 hxg5) 49. h5 $18 {[%emt 0:03:14]} gxh5 {[%emt 0:00:31]} 50. gxh5 {[%emt 0:00:07]} Kg7 {[%emt 0:00:27]} 51. c4 {[%emt 0:00:48]} Kh7 {[%emt 0:04:21]} (51... Rf7+ 52. Ke5 Re7+ 53. Kd5 Rd7+ 54. Ke6 Rf7) 52. Kf5 {[%emt 0:02:41]} Rg7 {[%emt 0:03:40]} 53. Kf6 {[%emt 0:02:05]} Kg8 {[%emt 0:00:13]} 54. Re6 {[%emt 0:01:16] White wants to mate with Re8+.} Rg5 {[%emt 0:01:35]} 55. Re8+ {[%emt 0:01:02]} Kh7 {[%emt 0:00:01]} 56. Re5 {[%emt 0:12:19]} Rg1 {[%emt 0:00:22]} 57. Re7+ {[%emt 0:00:00]} Kg8 {[%emt 0:00:06]} 58. Rxc7 {[%emt 0:00:00]} Rg5 {[%emt 0:00:08]} 59. Rc8+ {[%emt 0:00:00]} Kh7 {[%emt 0:00:21]} 60. Rc7+ {[%emt 0:00:00]} Kg8 {[%emt 0:00:05]} 61. c5 {[%emt 0:00:00]} Rxh5 {[%emt 0:00:05]} 62. Rc8+ {[%emt 0:00:00]} Kh7 {[%emt 0:00:04]} 63. Rc7+ {[%emt 0:00:00]} (63. Ke6 $142 Rh2 64. Rd8 Kg7 65. Rd5 Re2+ 66. Kd7 Kf7 67. c6 Re7+ 68. Kc8) 63... Kg8 $1 {[%emt 0:00:05]} 64. c6 $2 {[%emt 0:00:00]} (64. Ke7 $18 {Threatening mate with c6.} Re5+ 65. Kd6) 64... Rc5 $11 {[%emt 0:00:12] The position is equal.} 65. Rc8+ {[%emt 0:00:00]} Kh7 {[%emt 0:00:02]} 66. Rc7+ {[%emt 0:00:00]} Kg8 {[%emt 0:00:03]} 67. Ke6 {[%emt 0:00:34] Kd7 is the strong threat.} Rc2 {[%emt 0:00:12]} 68. Rc8+ {[%emt 0:00:51]} Kg7 {[%emt 0:00:03]} 69. Kd7 {[%emt 0:00:50] And now Rb8 would win.} h5 {[%emt 0:01:11]} 70. Rd8 {[%emt 0:00:57]} h4 {[%emt 0:02:28]} 71. c7 {[%emt 0:00:20]} Kf6 {[%emt 0:00:36]} 72. c8=Q {[%emt 0:04:28]} Rxc8 {[%emt 0:00:04]} 73. Rxc8 {[%emt 0:00:00] Rc5 would kill now. KR-KP} Kf5 {[%emt 0:00:05]} 74. Kd6 {[%emt 0:00:26]} Kf4 {[%emt 0:02:03]} 75. Rc3 {[%emt 0:00:28]} Kg4 {[%emt 0:00:08]} 76. Ke5 {[%emt 0:00:22]} h3 {[%emt 0:00:05]} 77. Rc4+ {[%emt 0:00:38]} Kg3 {[%emt 0:00:05]} 78. Kf5 {[%emt 0:00:09]} h2 {[%emt 0:00:07]} 79. Rc1 {[%emt 0:00:16]} Kg2 {[%emt 0:00:04] Black escapes into a draw.  Weighted Error Value: White=0.21 (precise) /Black=0.39} 1/2-1/2

[Event "13th Dolomiti-Forni di Sopra-A 2022"]
[Site "Forni di Sopra"]
[Date "2022.06.18"]
[Round "8.3"]
[White "Harshavardhan G B"]
[Black "Dardha, Daniel"]
[Result "0-1"]
[ECO "E32"]
[WhiteElo "2367"]
[BlackElo "2561"]
[Annotator "TA"]
[PlyCount "56"]
[EventDate "2022.06.13"]
[EventType "swiss"]
[EventCountry "ITA"]
[SourceTitle "playchess.com"]
[Source "ChessBase"]
[SourceQuality "1"]
[TimeControl "40/5400+30:1800+30"]

{[%evp 10,56,18,13,23,7,0,0,0,-16,-13,-13,-13,-15,-10,-17,-13,-238,-233,-237,-237,-353,-371,-348,-209,-213,-185,-281,-142,-135,-141,-283,-283,-673,-679,-667,-664,-654,-644,-768,-764,-988,-987,-919,-720,-720,-714,-676,-666]} 1. d4 {[%emt 0:00:33]} Nf6 {[%emt 0:13:49]} 2. c4 {[%emt 0:00:31]} e6 {[%emt 0:00:32]} 3. Nc3 {[%emt 0:00:48]} Bb4 {[%emt 0:00:11]} 4. Qc2 {[%emt 0:00:05]} O-O {[%emt 0:02:55]} 5. e4 {[%emt 0:00:11]} d6 {[%emt 0:02:20]} 6. e5 {[%emt 0:06:46]} dxe5 {[%emt 0:07:28] E32: Nimzo-Indian: Classical (4 Qc2): 4...0-0.} 7. dxe5 {[%emt 0:00:06]} Ng4 {[%emt 0:00:32] 7...Nfd7 injects fresh life into this line.} 8. Nf3 {[%emt 0:00:24] Threatens to win with h3.} Nc6 $1 {[%emt 0:00:52] The position is equal.} 9. a3 {[%emt 0:01:26]} Bc5 {[%emt 0:10:13]} 10. Ne4 {[%emt 0:01:01]} Nd4 {[%emt 0:02:51]} 11. Nxd4 {[%emt 0:03:32]} Bxd4 {[%emt 0:01:08]} (11... Qxd4 12. h3 Nxf2 13. Nxf2 $16) 12. Bg5 $1 {[%emt 0:08:18]} Bxf2+ {[%emt 0:12:27] [#]} 13. Ke2 $146 {[%emt 0:01:25]} (13. Qxf2 $11 {and White stays safe.} Nxf2 14. Bxd8 Nxe4 15. Bxc7) ({Predecessor:} 13. Qxf2 Nxf2 14. Bxd8 Nxe4 15. Bxc7 b6 16. Be2 Ba6 17. Rd1 Rac8 18. Rd7 f5 19. exf6 Nxf6 {0-1 (48) Bocharov,D (2574)-Nisipeanu,L (2670) Warsaw 2005}) 13... Qd4 $19 {[%emt 0:02:33]} 14. h3 {[%emt 0:10:07]} Ne3 {[%emt 0:01:02]} (14... Nxe5 15. Rd1 Nc6 16. Nxf2 $16) 15. Qb1 {[%emt 0:00:05] [#]} (15. Qc1 $142 Qxe4 16. Kxf2 Qf5+ 17. Kxe3 Qxg5+ 18. Kf2 Qf5+ 19. Kg1) 15... Nf5 $1 {[%emt 0:07:06] ...Be3 is the strong threat. Really sharp!} 16. Nxf2 {[%emt 0:01:25]} Qxe5+ {[%emt 0:02:21]} 17. Kd1 {[%emt 0:00:15]} Ng3 {[%emt 0:01:32]} ({Weaker is} 17... Ne3+ 18. Bxe3 Qxe3 19. Qc2 $14 (19. Nd3 Qe4 $14)) 18. Bd2 {[%emt 0:00:18]} (18. Qc1 $142 Nxh1 19. Nxh1) 18... Nxh1 {[%emt 0:03:30]} ({Don't blunder} 18... Qd4 $2 19. Ke1 Qe5+ 20. Kd1 $19) (18... Rd8 $19 19. Qc1 Qe3) 19. Nxh1 $17 {[%emt 0:00:05]} Rd8 $36 {[%emt 0:01:41][%mdl 2048] Keeping White busy.} 20. Qc2 {[%emt 0:01:54] [#] This costs White the game.} (20. Qc1 $17) 20... Bd7 $1 $19 {[%emt 0:01:05][%cal Od7a4] And now ...Ba4! would win.} 21. Bd3 $2 {[%emt 0:01:26] [#]} (21. a4 Bc6 22. Qc3) 21... Ba4 $1 {[%emt 0:00:49][%mdl 512] Black is clearly winning.} 22. Bxh7+ {[%emt 0:01:33]} Kh8 {[%emt 0:00:05]} 23. Qxa4 {[%emt 0:00:05]} Qxb2 {[%emt 0:00:30][%csl Gd8][%cal Rb2d2]} 24. Qc2 {[%emt 0:00:04]} Qxa1+ {[%emt 0:00:22]} 25. Qb1 {[%emt 0:00:01]} Qd4 {[%emt 0:00:12][%csl Gd8][%cal Rd4d2]} 26. Qc2 {[%emt 0:00:04]} Qxd2+ {[%emt 0:00:11]} 27. Qxd2 {[%emt 0:00:06]} Rxd2+ {[%emt 0:00:06]} 28. Kxd2 {[%emt 0:00:04]} Kxh7 {[%emt 0:00:05] Weighted Error Value: White=0.87/Black=0.25 (precise)} 0-1

[Event "13th Dolomiti-Forni di Sopra-A 2022"]
[Site "Forni di Sopra"]
[Date "2022.06.18"]
[Round "8.4"]
[White "Cappelletto, Joshuaede"]
[Black "Moroni, Luca Jr"]
[Result "0-1"]
[ECO "B28"]
[WhiteElo "2276"]
[BlackElo "2581"]
[Annotator "TA"]
[PlyCount "68"]
[EventDate "2022.06.13"]
[EventType "swiss"]
[EventCountry "ITA"]
[SourceTitle "playchess.com"]
[Source "ChessBase"]
[SourceQuality "1"]
[TimeControl "40/5400+30:1800+30"]

{[%evp 10,68,27,25,35,40,58,26,80,83,74,58,107,55,43,20,6,14,16,9,60,43,55,29,43,27,32,0,0,-32,-27,-87,-90,-78,-83,-85,-78,-78,-21,-35,-31,-50,-49,-64,-39,-39,-18,-51,-46,-75,-70,-133,-130,-138,-130,-203,-189,-204,-171,-412,-402]} 1. e4 {[%emt 0:00:02]} c5 {[%emt 0:00:43]} 2. Nc3 {[%emt 0:00:07]} a6 {[%emt 0:00:10]} 3. Nge2 {[%emt 0:00:18]} b5 {[%emt 0:01:01]} 4. d4 {[%emt 0:00:11]} cxd4 {[%emt 0:00:04]} 5. Nxd4 {[%emt 0:00:05]} Bb7 {[%emt 0:00:04]} 6. Bd3 {[%emt 0:01:28]} g6 {[%emt 0:00:50] B28: Sicilian: 2 Nf3 a6 (O'Kelly Variation).} 7. Be3 {[%emt 0:10:40]} Bg7 {[%emt 0:01:39]} 8. a4 {[%emt 0:12:23] [#]} bxa4 $146 {[%emt 0:02:16]} (8... b4 $1 $11 9. Na2 d5) ({Predecessor:} 8... b4 9. Nd5 Nf6 10. Nxf6+ Bxf6 11. Qd2 Nc6 12. Bc4 Ne5 13. Bb3 Qc7 14. f3 d5 15. exd5 {0-1 (46) Poetsch,H (2395)-Baklan,V (2621) Germany 2011}) 9. O-O $16 {[%emt 0:00:35]} Nf6 {[%emt 0:08:29]} 10. Rxa4 {[%emt 0:00:35]} O-O {[%emt 0:02:25]} (10... Nc6 $14 {might be stronger.}) 11. Qe2 {[%emt 0:10:05]} (11. e5 $16 Nd5 12. Nxd5 Bxd5 13. Qe2) 11... d5 {[%emt 0:06:33]} 12. exd5 {[%emt 0:04:44]} Nxd5 {[%emt 0:02:31]} 13. Nxd5 {[%emt 0:00:40]} Qxd5 {[%emt 0:01:28][%csl Gb7][%cal Rd5g2] [#]} 14. Nf3 {[%emt 0:00:09]} Qd7 {[%emt 0:04:24]} ({Better is} 14... Nd7 $11) 15. b3 $14 {[%emt 0:03:35]} Bc6 {[%emt 0:01:19]} 16. Ra2 {[%emt 0:01:47]} (16. Rh4 $5 {[%cal Rf3g5]}) 16... Qb7 {[%emt 0:07:27]} 17. Re1 {[%emt 0:01:02]} Re8 {[%emt 0:01:50]} 18. Bc4 {[%emt 0:11:51]} (18. Ng5 {keeps more tension.} e6 19. Bf4 Nd7 20. Rxa6 Nc5 21. Rxa8 Rxa8 22. Bc4) 18... e6 {[%emt 0:03:16]} 19. Rd1 {[%emt 0:05:48]} a5 {[%emt 0:05:30]} 20. Bd4 {[%emt 0:10:47]} (20. h4 $11) 20... Bxf3 $17 {[%emt 0:02:34]} 21. gxf3 {[%emt 0:00:05]} ({Don't go for} 21. Qxf3 $2 Qxf3 22. gxf3 Rd8 $19) 21... Bxd4 {[%emt 0:01:20]} 22. Rxd4 {[%emt 0:00:06]} Nc6 {[%emt 0:00:22]} 23. Rd2 {[%emt 0:00:38]} Ne7 {[%emt 0:05:14]} (23... Red8 $17 {Hoping for ...Nd4.} 24. Kg2 Qe7) 24. Ra1 {[%emt 0:03:38]} Nf5 {[%emt 0:41:01]} 25. Qe4 {[%emt 0:04:41]} Qe7 {[%emt 0:00:00] [#] And now ...Qg5+ would win.} 26. Rad1 {[%emt 0:00:05]} Nh4 {[%emt 0:00:00] Threatens to win with ...a4.} 27. f4 {[%emt 0:03:52]} Qf6 {[%emt 0:00:00]} 28. Kf1 {[%emt 0:00:27]} Nf5 {[%emt 0:00:00]} 29. Rd7 {[%emt 0:04:45]} a4 {[%emt 0:00:00] Strongly threatening ...a3.} 30. bxa4 ({White should play} 30. h3 $1 $15) 30... Rxa4 {[%emt 0:00:00] aiming for ...Rc8.} 31. Qc6 {Against Rc8} Raa8 {[%emt 0:00:00]} 32. Be2 (32. Bd3 $17) 32... Qh4 $19 {[%emt 0:00:00][%csl LRf4,LRh2]} 33. Bd3 Qxf4 {[%emt 0:00:00] White must now prevent ...Ne3+.} ({Inferior is} 33... Qxh2 34. Bxf5 gxf5 35. Qf3 $17) 34. Qc7 $2 (34. Bxf5 {only move.} Qxf5 35. Qc3) 34... Ne3+ {[%emt 0:00:00] Weighted Error Value: White=0.33/Black=0.15 (very precise)} 0-1